bitfinex-derivatives/quotes_ETHF0:USTF0_20251025
["timestamp","ask_amount","ask_price","bid_price","bid_amount"]
[1761398991502,4.0026,3940.4,3940.3,9.6708]
[1761398991997,4.0026,3940.4,3940.3,9.3925]
[1761398993903,0.3463,3941.1,3940.3,8.949]
[1761398994195,0.1318,3941.5,3940.9,0.91211127]
[1761398994395,0.1318,3941.5,3941.2,0.45666]
[1761398994587,0.1318,3941.5,3941.1,0.91154553]
[1761398994791,0.3517,3941.5,3941.2,8.949]
[1761398995102,0.3517,3941.5,3941.3,8.949]
[1761398996201,0.1318,3941.0,3940.9,0.91154553]
[1761398996402,0.698,3941.0,3940.9,9.86054553]
[1761398996796,0.698,3941.0,3940.9,0.91154553]
[1761398997002,0.698,3941.0,3940.9,9.86054553]
[1761398997506,0.698,3941.0,3940.9,0.91154553]
[1761398997705,0.698,3941.0,3940.9,9.86054553]
[1761398998097,0.698,3941.0,3940.9,8.949]
[1761399000600,0.3379,3940.9,3940.8,3.2078]
[1761399000804,0.3379,3940.9,3940.8,12.1558]
[1761399004102,0.1318,3941.0,3940.8,12.1558]
[1761399004304,0.3379,3940.9,3940.8,12.1558]
[1761399004804,0.3379,3940.9,3940.8,3.2078]
[1761399005103,0.3379,3940.9,3940.8,12.1558]
[1761399008714,0.3379,3940.9,3940.8,3.2078]
[1761399009013,0.3379,3940.9,3940.8,12.1558]
[1761399009202,0.3379,3940.9,3940.8,3.2078]
[1761399009405,0.3379,3940.9,3940.8,12.1558]
[1761399010611,0.7916,3940.9,3940.8,3.2078]
[1761399010915,0.459,3940.5,3940.4,3.2078]
[1761399011210,0.459,3940.5,3940.4,12.1548]
[1761399013816,0.459,3940.5,3940.4,8.947]
[1761399014009,0.459,3940.5,3940.4,12.1548]
[1761399014206,0.6739,3940.5,3940.4,3.2078]
[1761399014411,0.6739,3940.5,3940.4,12.1548]
[1761399014713,0.6739,3940.5,3940.4,3.2078]
[1761399014904,0.6739,3940.5,3940.4,12.1548]
[1761399015718,0.6739,3940.5,3940.4,3.2078]
[1761399016017,0.8914,3940.5,3940.4,12.1548]
[1761399017107,0.8914,3940.5,3940.4,3.2078]
[1761399017312,0.8914,3940.5,3940.4,11.7718]
[1761399017720,0.8914,3940.5,3940.4,3.2078]
[1761399017921,0.8914,3940.5,3940.4,12.1558]
[1761399021616,0.8914,3940.5,3940.4,8.948]
[1761399024318,0.2149,3940.2,3940.1,3.2078]
[1761399024523,0.7528,3940.2,3940.1,12.1558]
[1761399025023,0.5353,3940.2,3940.1,12.1558]
[1761399026324,0.5353,3940.2,3940.1,3.2078]
[1761399026531,0.5353,3940.2,3940.1,11.7698]
[1761399026831,0.7528,3940.2,3940.1,11.7698]
[1761399027628,0.4324,3940.2,3940.1,8.948]
[1761399028132,3.3464,3940.5,3940.0,0.0030131]
[1761399028133,0.7528,3940.1,3940.0,0.0030131]
[1761399031130,3.9606,3940.1,3940.0,0.0030131]
[1761399037936,0.7528,3940.1,3940.0,0.0030131]
[1761399038137,3.9606,3940.1,3940.0,0.0030131]
[1761399039033,0.7528,3940.1,3940.0,0.0030131]
[1761399039437,0.3204,3940.1,3940.0,0.0030131]
[1761399044848,0.7513,3940.1,3940.0,0.0030131]
[1761399046849,0.7513,3940.1,3940.0,7.0810131]
[1761399053950,0.3204,3940.1,3940.0,7.0810131]
[1761399056958,0.5365,3940.1,3940.0,7.0810131]
[1761399058052,0.3204,3940.1,3940.0,7.0810131]
[1761399065752,0.7575,3940.1,3940.0,0.0030131]
[1761399065961,0.7575,3940.1,3940.0,8.9490131]
[1761399069868,0.7575,3940.1,3940.0,0.0030131]
[1761399070162,0.7575,3940.1,3940.0,8.9490131]
[1761399070659,0.7575,3940.1,3940.0,0.0030131]
[1761399070859,0.7575,3940.1,3940.0,8.9490131]
[1761399078373,0.3204,3940.1,3940.0,8.9490131]
[1761399086775,0.3209,3940.4,3940.1,0.45679]
[1761399087075,0.3209,3940.4,3940.2,0.45677]
[1761399087373,0.3209,3940.4,3940.3,8.945]
[1761399091571,0.5492,3940.4,3940.2,0.45677]
[1761399091873,0.3209,3940.2,3940.1,0.91154553]
[1761399092270,0.3209,3940.2,3940.1,10.31232553]
[1761399094667,0.3209,3940.2,3940.1,1.36832553]
[1761399094869,0.3209,3940.2,3940.1,10.31232553]
[1761399095077,0.3209,3940.4,3940.3,0.45676]
[1761399102781,0.3209,3940.4,3940.3,1.36830553]
[1761399102983,0.3209,3940.4,3940.3,0.45676]
[1761399106377,0.3209,3940.4,3940.3,1.82377886]
[1761399107473,0.1386,3940.5,3940.3,1.82377886]
[1761399107681,0.4639,3940.5,3940.4,8.942]
[1761399107986,0.3253,3940.8,3940.4,10.30901886]
[1761399108183,0.3253,3940.8,3940.7,0.45672]
[1761399108390,0.3253,3940.8,3940.7,9.39872]
[1761399109487,0.4571,3941.0,3940.9,0.45669]
[1761399111093,0.5411,3940.9,3940.8,0.4567]
[1761399111599,0.3253,3940.8,3940.7,9.85370266]
[1761399111891,0.5411,3940.8,3940.7,9.85370266]
[1761399112301,0.3253,3940.7,3940.6,1.36842266]
[1761399112495,0.3253,3940.7,3940.6,10.30942266]
[1761399113100,0.5411,3940.7,3940.6,10.30942266]
[1761399113487,0.3253,3940.7,3940.6,9.39772]
[1761399113989,0.3253,3940.7,3940.6,0.45672]
[1761399114195,0.3253,3940.7,3940.6,9.39772]
[1761399115295,0.3253,3940.7,3940.6,12.60552]
[1761399116799,0.1318,3941.0,3940.9,0.45669]
[1761399117000,0.1318,3941.0,3940.9,9.39769]
[1761399117191,0.3476,3941.0,3940.9,9.39769]
[1761399117393,0.6729,3941.0,3940.9,9.39769]
[1761399117802,0.6729,3941.0,3940.9,0.45669]
[1761399117995,0.6729,3941.0,3940.9,9.39669]
[1761399118598,0.1318,3941.5,3940.9,9.39669]
[1761399118599,0.3253,3941.3,3941.2,0.45665]
[1761399118896,0.3253,3941.3,3941.2,9.39665]
[1761399119205,0.5411,3941.3,3941.2,9.39665]
[1761399120203,0.3253,3941.3,3941.2,9.39665]
[1761399120505,0.3253,3941.3,3941.2,9.39666]
[1761399120893,0.5558,3941.3,3941.2,9.39666]
[1761399121601,0.5558,3941.3,3941.2,8.94]
[1761399121898,0.7851,3941.3,3941.2,8.94]
[1761399124103,0.5558,3941.3,3941.2,8.94]
[1761399124304,0.3424,3941.1,3941.0,0.91145131]
[1761399124501,0.5729,3941.1,3941.0,9.85045131]
[1761399125004,0.3424,3941.1,3941.0,9.85045131]
[1761399129106,0.5729,3941.1,3941.0,13.05825131]
[1761399132208,0.5729,3941.1,3941.0,12.1468]
[1761399134114,0.3424,3941.1,3941.0,12.1468]
[1761399134710,0.5646,3941.1,3941.0,12.1468]
[1761399136414,0.5646,3941.1,3941.0,3.2078]
[1761399136612,0.5646,3941.1,3941.0,12.1458]
[1761399138713,0.7979,3941.1,3941.0,12.1458]
[1761399140211,0.5646,3941.1,3941.0,12.1458]
[1761399141725,0.3424,3941.1,3941.0,13.51281886]
[1761399146622,0.5646,3941.1,3941.0,13.51281886]
[1761399147722,0.5646,3941.1,3941.0,10.30501886]
[1761399148018,0.5646,3941.1,3941.0,13.51281886]
[1761399148216,0.5646,3941.1,3941.0,12.1458]
[1761399148917,0.3424,3941.1,3941.0,12.1458]
[1761399149923,0.5646,3941.1,3941.0,3.2078]
[1761399150131,0.7979,3941.1,3941.0,13.51517111]
[1761399153424,0.7979,3941.1,3941.0,12.1448]
[1761399153625,0.7979,3941.1,3941.0,13.51504395]
[1761399155627,0.5646,3941.1,3941.0,13.51504395]
[1761399155927,0.5646,3941.1,3941.0,10.30724395]
[1761399156226,0.3424,3941.1,3941.0,13.51504395]
[1761399161130,0.5579,3941.1,3941.0,13.51504395]
[1761399161827,0.5579,3941.1,3941.0,13.51404395]
[1761399166637,0.3424,3941.1,3941.0,13.51404395]
[1761399170440,0.3424,3941.1,3941.0,10.30624395]
[1761399170641,0.3424,3941.1,3941.0,13.51404395]
[1761399173941,0.3424,3941.1,3941.0,4.57804395]
[1761399174239,0.3424,3941.1,3941.0,13.51304395]
[1761399174645,0.3203,3941.4,3941.0,13.51304395]
[1761399174937,0.3203,3941.4,3941.3,1.37014849]
[1761399175151,0.3203,3941.4,3941.3,9.84849849]
[1761399180055,0.3203,3941.4,3941.3,8.935]
[1761399180755,0.3203,3941.4,3941.3,10.30524395]
[1761399181151,0.3203,3941.4,3941.3,8.935]
[1761399184759,0.3203,3941.4,3941.3,10.30524395]
[1761399185161,0.3203,3941.4,3941.3,8.935]
[1761399186254,0.00242471,3941.8,3941.3,10.30524395]
[1761399186255,0.3503,3941.7,3941.3,10.30524395]
[1761399186452,0.3503,3941.7,3941.6,4.12049208]
[1761399186766,0.3503,3941.7,3941.6,13.05449208]
[1761399188649,4.25191332,3942.5,3941.8,0.0202]
[1761399188650,0.364,3942.5,3941.8,0.0202]
[1761399188854,0.364,3942.5,3942.4,0.0404]
[1761399189050,0.5786,3942.5,3942.4,8.9744]
[1761399189648,0.58092597,3942.5,3942.4,8.9744]
[1761399190662,0.92532597,3942.5,3942.4,8.9744]
[1761399194055,0.92532597,3942.5,3942.4,8.9542]
[1761399197669,0.92532597,3942.5,3942.4,8.934]
[1761399198763,0.3444,3942.4,3942.2,3.2078]
[1761399199071,0.58092597,3942.5,3941.6,3.228]
[1761399199072,0.5729,3941.7,3941.6,3.228]
[1761399199271,0.7875,3941.7,3941.6,9.944]
[1761399200068,0.7875,3941.7,3941.6,3.228]
[1761399200269,0.7875,3941.7,3941.6,11.751]
[1761399202970,0.7875,3941.7,3941.6,12.16]
[1761399203571,0.7875,3941.7,3941.6,8.9522]
[1761399203767,0.7875,3941.7,3941.6,8.9512]
[1761399204268,0.2285,3941.3,3941.2,0.93250185]
[1761399204573,0.7875,3941.3,3941.2,8.9714]
[1761399205473,0.7875,3941.3,3941.2,0.0404]
[1761399205666,0.3444,3941.3,3941.2,8.9916]
[1761399205866,0.3444,3941.3,3941.2,9.90390185]
[1761399209176,0.3444,3941.3,3941.2,8.9916]
[1761399211473,0.3444,3941.5,3941.4,0.49703]
[1761399211674,0.5729,3941.9,3941.8,0.0404]
[1761399211867,0.5729,3941.9,3941.8,8.9714]
[1761399212271,0.3444,3941.9,3941.8,8.9916]
[1761399212675,0.5729,3941.9,3941.8,8.9714]
[1761399212877,0.3444,3941.9,3941.8,8.9916]
[1761399213278,0.3444,3941.9,3941.8,8.9714]
[1761399213480,0.5729,3941.9,3941.8,8.9714]
[1761399215375,0.5729,3941.9,3941.8,8.9916]
[1761399215783,0.3444,3941.9,3941.8,8.9916]
[1761399216886,0.4813,3942.0,3941.9,0.47678]
[1761399217189,0.4813,3942.0,3941.9,0.51718]
[1761399218981,0.3444,3942.0,3941.9,0.51718]
[1761399219480,0.5475,3942.4,3942.3,0.0402]
[1761399219685,0.5475,3942.4,3942.3,8.9712]
[1761399219984,0.7798,3942.4,3942.3,8.9712]
[1761399224787,0.332,3942.4,3942.3,8.9913]
[1761399225387,0.5475,3942.4,3942.3,8.9712]
[1761399226483,0.332,3942.4,3942.3,8.9913]
[1761399228782,0.7798,3942.4,3942.3,0.0402]
[1761399228983,0.7798,3942.4,3942.3,8.9702]
[1761399232295,0.7798,3942.4,3942.3,8.9692]
[1761399234191,0.7798,3942.4,3942.3,0.0402]
[1761399234388,0.7798,3942.4,3942.3,8.9692]
[1761399235594,0.7798,3942.4,3942.3,0.0402]
[1761399235795,0.7798,3942.4,3942.3,8.9692]
[1761399236490,0.7798,3942.4,3942.3,8.9682]
[1761399239093,0.7798,3942.4,3942.3,0.0402]
[1761399239295,0.7798,3942.4,3942.3,8.9682]
[1761399243591,0.5475,3942.4,3942.3,8.9682]
[1761399243892,0.5475,3942.4,3942.3,8.9883]
[1761399244287,0.332,3942.4,3942.3,8.9883]
[1761399244594,0.13782597,3942.5,3942.4,0.0603]
[1761399244595,0.00232597,3942.5,3942.4,0.0603]
[1761399245587,0.00232597,3942.5,3942.4,0.0402]
[1761399245588,0.33192597,3942.5,3942.4,0.0402]
[1761399245791,0.68522597,3942.5,3942.4,0.0402]
[1761399246098,0.68522597,3942.5,3942.4,0.0603]
[1761399246495,0.46822597,3942.5,3942.4,0.0603]
[1761399247698,0.90442597,3942.5,3942.4,0.0402]
[1761399247990,0.3277,3942.1,3942.0,0.93125335]
[1761399248191,0.3277,3942.1,3942.0,9.89825335]
[1761399249986,0.7719,3942.1,3942.0,0.93125335]
[1761399250196,0.7719,3942.1,3942.0,8.947]
[1761399250400,1.04723929,3942.5,3941.6,4.13905335]
[1761399250401,0.7719,3941.7,3941.6,4.13905335]
[1761399250699,0.1334,3941.5,3941.3,0.02]
[1761399250896,0.7719,3941.4,3941.3,0.02]
[1761399251102,0.7719,3941.4,3941.3,8.405]
[1761399251992,0.7719,3941.4,3941.3,8.425]
[1761399255598,0.5424,3941.4,3941.3,8.445]
[1761399255793,0.3277,3941.4,3941.3,8.445]
[1761399258598,0.1334,3942.0,3941.3,8.445]
[1761399258805,0.3277,3941.7,3941.6,0.06]
[1761399259106,0.3277,3941.7,3941.6,8.988]
[1761399260100,0.3277,3941.7,3941.6,0.06]
[1761399260403,0.3277,3941.7,3941.6,8.988]
[1761399264804,0.3277,3941.7,3941.6,0.06]
[1761399265008,0.3277,3941.7,3941.6,8.988]
[1761399268510,0.5424,3941.7,3941.6,0.04]
[1761399268711,0.7719,3941.7,3941.6,8.968]
[1761399269508,0.5424,3941.7,3941.6,8.968]
[1761399269708,0.5424,3941.7,3941.6,0.04]
[1761399269909,0.3277,3941.7,3941.6,8.987]
[1761399271116,0.3277,3942.1,3942.0,0.06]
[1761399271324,0.3277,3942.1,3942.0,8.987]
[1761399272113,0.3277,3942.4,3942.3,0.06]
[1761399272302,0.3277,3942.4,3942.3,8.987]
[1761399272610,0.00232597,3942.5,3942.4,0.06]
[1761399274212,0.33002597,3942.5,3942.4,0.06]
[1761399276414,0.33002597,3942.5,3942.4,8.987]
[1761399278011,0.33002597,3942.5,3942.4,0.06]
[1761399278315,0.33002597,3942.5,3942.4,8.986]
[1761399282119,0.00232597,3942.5,3942.4,8.986]
[1761399282922,0.32542597,3942.5,3942.4,8.986]
[1761399287125,0.68242597,3942.5,3942.4,8.967]
[1761399287326,0.68242597,3942.5,3942.4,8.966]
[1761399287628,0.46202597,3942.5,3942.4,8.9865]
[1761399289825,0.46202597,3942.5,3942.4,8.966]
[1761399290427,0.68242597,3942.5,3942.4,8.966]
[1761399290827,0.68242597,3942.5,3942.4,0.041]
[1761399291028,0.68242597,3942.5,3942.4,8.966]
[1761399292021,0.68242597,3942.5,3942.4,8.9865]
[1761399294333,0.68242597,3942.5,3942.4,8.966]
[1761399294629,0.90542597,3942.5,3942.4,8.966]
[1761399297623,0.90542597,3942.5,3942.4,8.9455]
[1761399298433,0.90542597,3942.5,3942.4,8.966]
[1761399299732,0.46202597,3942.5,3942.4,8.9861]
[1761399300029,0.00232597,3942.5,3942.4,8.9861]
[1761399300431,0.90861332,3943.7,3943.2,0.0178]
[1761399300730,5.43140856,3944.8,3943.2,0.0178]
[1761399300731,0.3214,3944.7,3944.4,0.0178]
[1761399300920,0.3214,3944.7,3944.6,0.0356]
[1761399301333,0.3214,3944.7,3944.4,0.0178]
[1761399301334,0.3214,3944.6,3944.4,0.68284239]
[1761399301533,0.9041,3944.5,3944.4,0.68284239]
[1761399301727,0.9041,3944.5,3944.4,9.64292881]
[1761399301925,0.9041,3944.5,3944.4,9.66072881]
[1761399302325,0.9041,3944.5,3944.4,8.97788642]
[1761399303329,0.9041,3944.5,3944.4,8.99568642]
[1761399309636,0.9041,3944.5,3944.4,0.03768642]
[1761399309939,0.78,3943.7,3943.6,3.2078]
[1761399310129,0.78,3943.7,3943.6,9.3124]
[1761399310934,0.78,3943.7,3943.6,9.31460171]
[1761399312833,0.78,3943.7,3943.6,9.33220171]
[1761399313035,0.78,3943.7,3943.6,12.19820171]
[1761399315135,0.78,3943.7,3943.6,8.99040171]
[1761399318338,0.3359,3943.7,3943.6,9.00800171]
[1761399318539,0.1418,3944.0,3943.6,8.99040171]
[1761399318744,0.3359,3944.1,3944.0,0.0528]
[1761399318941,0.1278,3944.5,3944.3,0.0352]
[1761399318942,0.3359,3944.4,3944.3,0.0352]
[1761399319142,0.3359,3944.4,3944.3,8.9872]
[1761399319846,0.3359,3944.4,3944.3,9.0048]
[1761399320344,0.3359,3944.4,3944.3,8.9872]
[1761399320545,0.3359,3944.4,3944.3,9.0048]
[1761399321844,0.5526,3944.4,3944.3,0.0352]
[1761399322048,0.5526,3944.4,3944.3,7.2522]
[1761399322246,0.78,3944.4,3944.3,7.2346]
[1761399323948,0.78,3944.4,3944.3,0.0176]
[1761399324151,0.78,3944.4,3944.3,6.8006]
[1761399327652,0.3359,3944.3,3944.0,3.2254]
[1761399327854,0.78,3944.2,3944.1,8.326]
[1761399328046,0.78,3944.2,3944.1,8.3612]
[1761399329357,0.78,3944.2,3944.1,0.0352]
[1761399329552,0.78,3944.2,3944.1,8.9646]
[1761399329855,0.78,3944.2,3943.9,0.68284239]
[1761399330060,0.78,3943.9,3943.8,0.0176]
[1761399330266,0.78,3943.9,3943.8,7.2636]
[1761399330647,0.78,3943.9,3943.8,0.0176]
[1761399331053,0.78,3943.9,3943.8,8.9656]
[1761399332054,0.78,3943.9,3943.6,0.68526156]
[1761399332055,0.3359,3943.8,3943.6,0.68526156]
[1761399332364,0.78,3943.7,3943.6,0.01980171]
[1761399332563,0.78,3943.7,3943.6,8.94920171]
[1761399332965,0.78,3943.7,3943.6,0.00220171]
[1761399336757,3.9878,3943.7,3943.6,0.00220171]
[1761399338667,0.78,3943.7,3943.6,0.00220171]
[1761399338868,3.9878,3943.7,3943.6,0.00220171]
[1761399343764,0.7778,3942.8,3942.7,0.68305985]
[1761399343966,0.2246,3941.7,3941.6,3.2277]
[1761399344159,0.7778,3941.7,3941.6,3.2078]
[1761399344770,0.7808302,3941.7,3941.6,3.20973988]
[1761399347271,3.9886302,3941.7,3941.6,0.00193988]
[1761399350267,3.9886302,3941.7,3940.6,3.2078]
[1761399350268,0.1361,3941.0,3940.6,3.2078]
[1761399350459,0.1361,3940.5,3940.2,0.0218]
[1761399350663,0.1361,3940.5,3940.0,0.0218]
[1761399350664,0.5601,3940.4,3940.3,0.0436]
[1761399351383,0.5601,3940.4,3940.3,0.04680473]
[1761399354370,0.3355,3940.7,3940.3,0.04680473]
[1761399354673,0.5601,3940.7,3940.6,0.0436]
[1761399355777,0.5601,3940.7,3940.6,0.0654]
[1761399355778,0.3355,3940.7,3940.6,0.0654]
[1761399355979,0.3355,3940.9,3940.8,0.0436]
[1761399356281,0.3355,3940.9,3940.8,0.0654]
[1761399356463,0.3355,3940.9,3940.8,8.1474]
[1761399356873,0.7778,3941.3,3940.9,0.0218]
[1761399357080,0.9139,3941.0,3940.9,0.0218]
[1761399357376,0.7778,3940.7,3940.6,0.0218]
[1761399357577,0.7778,3940.7,3940.6,9.0046]
[1761399364384,0.3355,3940.7,3940.6,9.0265]
[1761399364585,0.3355,3940.7,3940.6,9.0046]
[1761399364778,0.5599,3940.7,3940.6,9.0046]
[1761399365285,0.7737,3940.7,3940.6,0.0219]
[1761399365484,0.7737,3940.7,3940.6,8.9799]
[1761399368987,0.7737,3940.7,3940.6,8.9789]
[1761399369582,0.7737,3940.7,3940.3,0.00320473]
[1761399369786,3.2078,3940.7,3939.5,0.129]
[1761399370086,0.1361,3941.0,3939.6,0.3512]
[1761399370087,3.2078,3939.7,3939.6,0.3512]
[1761399370788,3.2078,3939.7,3939.6,0.35428543]
[1761399376981,3.2078,3939.7,3939.0,0.4802]
[1761399377182,3.2078,3939.3,3939.0,0.4802]
[1761399377490,3.2078,3939.3,3938.0,0.1254]
[1761399377491,3.2078,3939.3,3938.7,0.3512]
[1761399377789,3.2078,3938.8,3938.7,0.3512]
[1761399377987,3.21072966,3938.8,3938.7,0.35388281]
[1761399378187,3.21072966,3938.8,3938.7,0.00268281]
[1761399378891,0.00292966,3938.8,3938.7,0.79118281]
[1761399379188,0.00292966,3938.8,3938.7,0.35388281]
[1761399379384,3.21072966,3938.8,3938.7,0.35388281]
[1761399379780,3.21072966,3938.8,3938.7,0.00268281]
[1761399380891,3.21072966,3938.8,3938.7,0.35388281]
[1761399381087,3.21072966,3938.8,3938.7,0.00268281]
[1761399385986,12.18972966,3938.8,3938.7,0.00268281]
[1761399388198,20.18972966,3938.8,3938.2,0.3512]
[1761399388494,3.2078,3938.3,3938.2,0.3512]
[1761399389394,3.2078,3938.3,3938.2,0.35447244]
[1761399390593,3.2078,3938.3,3938.2,0.00327244]
[1761399391997,12.1848,3938.3,3938.2,0.00327244]
[1761399392598,52.9848,3938.3,3938.2,0.00327244]
[1761399394103,52.9848,3938.3,3938.2,0.35447244]
[1761399394603,52.9848,3938.3,3938.2,0.00327244]
[1761399395404,52.9848,3938.3,3938.2,0.35447244]
[1761399396598,52.9848,3938.3,3938.2,0.57547244]
[1761399397191,52.9848,3938.3,3938.2,0.35447244]
[1761399398004,52.9848,3938.3,3938.2,0.57547244]
[1761399398504,52.9848,3938.3,3938.2,0.35447244]
[1761399399308,53.89095273,3938.3,3938.2,0.35447244]
[1761399399804,44.91395273,3938.3,3938.2,0.35447244]
[1761399403309,44.0078,3938.3,3938.2,0.35447244]
[1761399406311,45.36242043,3938.3,3938.2,0.35447244]
[1761399406510,44.0078,3938.3,3938.2,0.58197244]
[1761399406806,44.0078,3938.3,3938.2,0.35447244]
[1761399406999,44.0078,3938.3,3938.2,0.35487244]
[1761399412219,45.36242043,3938.3,3938.2,0.35487244]
[1761399412416,45.36242043,3938.3,3938.2,0.58237244]
[1761399413014,3.2078,3938.3,3938.2,0.80937244]
[1761399418217,3.2078,3938.7,3938.3,0.3516]
[1761399418425,3.2078,3938.7,3938.6,0.8061]
[1761399423632,1.35462043,3939.5,3938.5,0.1384]
[1761399423633,3.2078,3939.2,3939.1,0.7992]
[1761399424725,3.21040714,3939.2,3939.1,0.7992]
[1761399426736,3.21040714,3939.2,3939.1,0.5632]
[1761399427034,3.21040714,3939.2,3939.1,0.3284]
[1761399427736,3.21040714,3939.2,3939.1,0.5632]
[1761399428030,3.21040714,3939.2,3939.1,0.7992]
[1761399429128,3.21040714,3939.2,3939.1,0.5632]
[1761399429328,3.21040714,3939.2,3939.1,0.3284]
[1761399432437,3.21040714,3939.2,3939.1,0.5565]
[1761399434842,3.21040714,3939.2,3939.1,0.3284]
[1761399439046,3.21040714,3939.2,3939.0,0.3365]
[1761399440040,3.21040714,3939.2,3939.1,0.3365]
[1761399442237,3.21040714,3939.2,3939.0,0.4683]
[1761399442443,3.21040714,3939.2,3939.1,0.3365]
[1761399446847,3.21040714,3939.2,3939.1,0.7845]
[1761399451353,3.21040714,3939.2,3939.1,0.5646]
[1761399451553,3.21040714,3939.2,3939.1,0.3365]
[1761399452256,3.21040714,3939.2,3939.0,0.4683]
[1761399452455,0.90809503,3939.1,3939.0,0.4683]
[1761399452655,4.11850217,3939.2,3939.1,0.3365]
[1761399454756,0.91070217,3939.2,3939.1,0.3365]
[1761399454957,4.11850217,3939.2,3939.1,0.3365]
[1761399455655,4.11850217,3939.2,3939.1,0.5646]
[1761399455958,4.11850217,3939.2,3939.1,0.3365]
[1761399456749,4.11850217,3939.2,3939.1,0.5646]
[1761399457957,4.11850217,3939.2,3939.1,0.3365]
[1761399458257,4.11850217,3939.2,3939.1,0.5498]
[1761399459257,4.11850217,3939.2,3939.1,0.7818]
[1761399460961,3.21040714,3939.2,3939.1,0.7818]
[1761399461761,0.00260714,3939.2,3939.1,0.7818]
[1761399474670,3.21040714,3939.2,3939.1,0.7818]
[1761399476470,0.00260714,3939.2,3939.1,0.7818]
[1761399476772,3.21040714,3939.2,3939.1,0.7818]
[1761399485869,0.00260714,3939.2,3939.1,0.7818]
[1761399511805,4.11589503,3939.4,3939.3,0.4582]
[1761399512000,4.11589503,3939.4,3939.3,9.7336]
[1761399512399,3.2078,3939.4,3939.3,9.7336]
[1761399512599,3.21074535,3939.4,3939.3,9.7336]
[1761399512802,0.00294535,3939.4,3939.3,9.7336]
[1761399514404,0.00294535,3939.4,3939.3,10.64655312]
[1761399516305,3.2078,3939.9,3939.8,0.7836]
[1761399517108,3.2078,3939.9,3939.8,9.7336]
[1761399517302,3.20958118,3939.9,3939.8,9.7336]
[1761399521309,0.00178118,3939.9,3939.8,9.7336]
[1761399522309,0.00178118,3939.9,3939.8,9.7326]
[1761399522609,0.00178118,3939.9,3939.8,0.7836]
[1761399522809,0.00178118,3939.9,3939.8,7.8006]
[1761399523709,0.00178118,3939.9,3939.8,9.7326]
[1761399524711,0.00178118,3939.9,3939.8,9.7316]
[1761399526711,0.00178118,3939.9,3939.8,0.7836]
[1761399526902,0.00178118,3939.9,3939.8,9.7316]
[1761399534117,0.00178118,3939.9,3939.8,0.7836]
[1761399534319,0.00178118,3939.9,3939.8,9.7316]
[1761399535620,0.00178118,3939.9,3939.8,0.7836]
[1761399535914,0.00178118,3939.9,3939.8,9.7316]
[1761399541214,0.00178118,3939.9,3939.8,0.7836]
[1761399541422,0.00178118,3939.9,3939.8,0.3254]
[1761399541423,1.35640161,3939.9,3939.8,0.3254]
[1761399541611,0.00178118,3939.9,3939.8,0.3254]
[1761399543019,8.00178118,3939.9,3939.8,0.3254]
[1761399545720,0.00178118,3939.9,3939.8,0.7704]
[1761399547325,1.36173554,3939.9,3939.8,0.7704]
[1761399551724,0.00178118,3939.9,3939.8,0.7704]
[1761399564330,0.90820092,3939.9,3939.8,0.7704]
[1761399567129,3.2078,3940.6,3940.2,0.3522]
[1761399567334,3.2078,3940.6,3940.5,0.9292]
[1761399567928,3.21090711,3940.6,3940.5,0.9292]
[1761399570641,1.81046952,3941.8,3941.7,0.0322]
[1761399570824,0.3312,3942.4,3942.3,0.0322]
[1761399571030,0.5477,3942.4,3942.3,0.0322]
[1761399571336,0.3312,3942.3,3941.7,0.0161]
[1761399571532,0.6877,3942.0,3941.9,0.0322]
[1761399576139,40.8,3942.9,3941.9,0.0322]
[1761399576140,3.3478,3944.5,3943.0,0.45644]
[1761399576443,0.4461,3943.8,3943.7,0.2198]
[1761399576836,0.3565,3944.0,3943.8,0.3522]
[1761399577134,0.58856205,3944.0,3943.9,0.8014]
[1761399577439,0.44856205,3944.0,3943.9,0.8014]
[1761399577835,0.58856205,3944.0,3943.9,0.8014]
[1761399578139,0.34591155,3945.0,3943.6,3.2078]
[1761399578140,0.5511,3944.7,3944.6,0.806]
[1761399578834,0.2195,3944.7,3944.6,0.806]
[1761399579034,3.2078,3946.0,3944.7,1.14064]
[1761399579231,0.022,3947.8,3946.3,0.806]
[1761399579232,0.5511,3946.4,3946.3,0.806]
[1761399579426,0.4468,3946.4,3945.9,3.7826]
[1761399579640,0.9178,3946.0,3945.9,0.5748]
[1761399579840,0.9178,3946.0,3945.9,0.806]
[1761399580139,0.91958286,3946.0,3945.9,0.806]
[1761399580338,0.78018286,3946.0,3945.9,0.806]
[1761399580534,0.55288286,3946.0,3945.9,0.806]
[1761399581527,0.91958286,3946.0,3945.6,0.3535]
[1761399581726,0.4468,3945.7,3945.6,0.806]
[1761399581929,0.7784,3945.7,3945.6,0.806]
[1761399582343,0.2195,3945.7,3945.6,0.806]
[1761399582743,0.7784,3945.7,3945.6,0.806]
[1761399584031,0.00178286,3946.0,3945.6,0.806]
[1761399584237,0.9178,3946.5,3946.4,0.4525]
[1761399584442,0.9178,3946.5,3946.4,0.2213]
[1761399585238,0.92109242,3946.5,3946.4,0.2213]
[1761399585438,0.56219242,3946.5,3946.4,1.26206]
[1761399585639,0.56219242,3946.5,3946.4,4.0138]
[1761399585640,0.00329242,3946.5,3946.4,4.0138]
[1761399585945,0.55439242,3946.5,3946.4,4.0138]
[1761399586543,0.22279242,3946.5,3946.4,4.0138]
[1761399586743,0.00329242,3946.5,3946.4,4.0138]
[1761399588543,0.78169242,3946.5,3946.4,4.0138]
[1761399588741,0.92109242,3946.5,3946.4,0.4525]
[1761399588941,0.7784,3946.2,3946.1,0.4525]
[1761399591139,0.7784,3946.2,3946.1,0.2213]
[1761399591751,0.5511,3946.2,3946.1,0.806]